[Event "Early-Titled-Tuesday-Blitz-February-06-2024"]
[Site "Chess.com"]
[Date "2024.02.06"]
[Round "11"]
[White "Suleyman_Chess06"]
[Black "scarabee43"]
[Result "0-1"]
[WhiteElo "2699"]
[BlackElo "2869"]
[TimeControl "180+1"]
[EndTime "10:08:42 PST"]
[Termination "scarabee43 won on time"]

1. Nf3 {[%clk 0:03:00.9]} 1... d5 {[%clk 0:02:59.8]} 2. g3 {[%clk 0:03:01.5]}
2... Nf6 {[%clk 0:03:00.4]} 3. Bg2 {[%clk 0:03:00.9]} 3... e6 {[%clk 0:03:00.9]}
4. O-O {[%clk 0:03:00.7]} 4... Be7 {[%clk 0:03:01.7]} 5. d4 {[%clk 0:03:00.8]}
5... O-O {[%clk 0:03:01.6]} 6. c4 {[%clk 0:03:01]} 6... Nbd7 {[%clk 0:03:01.9]}
7. cxd5 {[%clk 0:02:57.3]} 7... exd5 {[%clk 0:03:01.4]} 8. Nc3 {[%clk
0:02:56.3]} 8... c6 {[%clk 0:03:00.7]} 9. Bf4 {[%clk 0:02:56.7]} 9... Re8 {[%clk
0:02:56.8]} 10. Ne5 {[%clk 0:02:57.2]} 10... Bf8 {[%clk 0:02:50.6]} 11. Qd2
{[%clk 0:02:53.1]} 11... Nxe5 {[%clk 0:02:32.7]} 12. dxe5 {[%clk 0:02:53.2]}
12... Ng4 {[%clk 0:02:32.7]} 13. Qd4 {[%clk 0:02:40.5]} 13... Qe7 {[%clk
0:02:15.1]} 14. e4 {[%clk 0:02:35.2]} 14... dxe4 {[%clk 0:02:09.4]} 15. Nxe4
{[%clk 0:02:27.4]} 15... Nxe5 {[%clk 0:02:10]} 16. Rfe1 {[%clk 0:02:19.2]} 16...
Bf5 {[%clk 0:01:18]} 17. Rad1 {[%clk 0:02:06.8]} 17... Ng6 {[%clk 0:01:08.5]}
18. Bd6 {[%clk 0:01:56.4]} 18... Qd8 {[%clk 0:01:03.2]} 19. Qc5 {[%clk
0:01:39.8]} 19... Bxe4 {[%clk 0:00:49]} 20. Bxf8 {[%clk 0:01:39.7]} 20... Qb6
{[%clk 0:00:49.4]} 21. Bxe4 {[%clk 0:01:35.6]} 21... Nxf8 {[%clk 0:00:48.6]} 22.
Qc2 {[%clk 0:01:29]} 22... Rad8 {[%clk 0:00:47.2]} 23. Bd3 {[%clk 0:01:24.2]}
23... g6 {[%clk 0:00:45.6]} 24. Bc4 {[%clk 0:01:22.3]} 24... Qa5 {[%clk
0:00:36.2]} 25. Rxe8 {[%clk 0:01:21]} 25... Rxe8 {[%clk 0:00:36.8]} 26. Qb3
{[%clk 0:01:18.1]} 26... Re1+ {[%clk 0:00:36.1]} 27. Kg2 {[%clk 0:01:13]} 27...
Rxd1 {[%clk 0:00:34]} 28. Qxd1 {[%clk 0:01:11.5]} 28... Qe5 {[%clk 0:00:31.6]}
29. Qb3 {[%clk 0:01:07.2]} 29... Qe7 {[%clk 0:00:31]} 30. Qd3 {[%clk 0:01:07.1]}
30... Nd7 {[%clk 0:00:25.7]} 31. Qd4 {[%clk 0:01:05.4]} 31... Nb6 {[%clk
0:00:21.2]} 32. Bb3 {[%clk 0:01:02.7]} 32... c5 {[%clk 0:00:21.6]} 33. Qf4
{[%clk 0:01:02.6]} 33... Kg7 {[%clk 0:00:20.5]} 34. a4 {[%clk 0:00:58.5]} 34...
Qf6 {[%clk 0:00:19.9]} 35. Qe4 {[%clk 0:00:50.1]} 35... Qxb2 {[%clk 0:00:17.4]}
36. Bxf7 {[%clk 0:00:47.8]} 36... Kxf7 {[%clk 0:00:14.6]} 37. Qxb7+ {[%clk
0:00:47.4]} 37... Kg8 {[%clk 0:00:12.4]} 38. a5 {[%clk 0:00:47.7]} 38... Qg7
{[%clk 0:00:11.3]} 39. Qe4 {[%clk 0:00:34.4]} 39... Nd7 {[%clk 0:00:10.5]} 40.
Qa8+ {[%clk 0:00:27.8]} 40... Nf8 {[%clk 0:00:10.6]} 41. Qc6 {[%clk 0:00:26.3]}
41... Qe7 {[%clk 0:00:10.3]} 42. a6 {[%clk 0:00:25.6]} 42... Kg7 {[%clk
0:00:10.7]} 43. h4 {[%clk 0:00:23.2]} 43... h5 {[%clk 0:00:10.5]} 44. f3 {[%clk
0:00:21.8]} 44... Qe2+ {[%clk 0:00:09.6]} 45. Kg1 {[%clk 0:00:20.4]} 45... Qe7
{[%clk 0:00:08.7]} 46. Qd5 {[%clk 0:00:19]} 46... Nh7 {[%clk 0:00:07]} 47. Qb7
{[%clk 0:00:16.1]} 47... Kf8 {[%clk 0:00:07.4]} 48. Qc8+ {[%clk 0:00:15.4]}
48... Kf7 {[%clk 0:00:07.4]} 49. Qc6 {[%clk 0:00:12.8]} 49... Nf6 {[%clk
0:00:07.9]} 50. Kg2 {[%clk 0:00:13.3]} 50... Kg7 {[%clk 0:00:06.4]} 51. Kf2
{[%clk 0:00:12.7]} 51... Qd7 {[%clk 0:00:03.8]} 52. Qxc5 {[%clk 0:00:12.5]}
52... Qd2+ {[%clk 0:00:03.2]} 53. Kf1 {[%clk 0:00:12.9]} 53... Qd3+ {[%clk
0:00:03.5]} 54. Kf2 {[%clk 0:00:12.8]} 54... Qxa6 {[%clk 0:00:03.1]} 55. Qe7+
{[%clk 0:00:12.4]} 55... Kh8 {[%clk 0:00:03.5]} 56. Qf8+ {[%clk 0:00:12.3]}
56... Ng8 {[%clk 0:00:03.8]} 57. Qf7 {[%clk 0:00:10.8]} 57... Qf6 {[%clk
0:00:04.4]} 58. Qa2 {[%clk 0:00:10.5]} 58... a6 {[%clk 0:00:04.3]} 59. Qd5
{[%clk 0:00:09.7]} 59... Kg7 {[%clk 0:00:04.9]} 60. Kg2 {[%clk 0:00:09.5]} 60...
Ne7 {[%clk 0:00:05.4]} 61. Qb7 {[%clk 0:00:09.8]} 61... Qe6 {[%clk 0:00:05.8]}
62. Qa7 {[%clk 0:00:08.3]} 62... Kf7 {[%clk 0:00:06.3]} 63. Kf2 {[%clk
0:00:07.9]} 63... Qc4 {[%clk 0:00:06.9]} 64. Kg2 {[%clk 0:00:05.2]} 64... Qb5
{[%clk 0:00:07.2]} 65. g4 {[%clk 0:00:05.1]} 65... hxg4 {[%clk 0:00:07]} 66.
fxg4 {[%clk 0:00:06]} 66... Qe2+ {[%clk 0:00:06.3]} 67. Kg3 {[%clk 0:00:05.8]}
67... Qe5+ {[%clk 0:00:07]} 68. Kg2 {[%clk 0:00:04.1]} 68... a5 {[%clk
0:00:07.8]} 69. Kh3 {[%clk 0:00:01.4]} 69... Qc3+ {[%clk 0:00:07]} 70. Kg2
{[%clk 0:00:01.9]} 70... Qc2+ {[%clk 0:00:07.5]} 71. Kg3 {[%clk 0:00:02.8]}
71... Qb3+ {[%clk 0:00:07.3]} 72. Kg2 {[%clk 0:00:03.4]} 72... a4 {[%clk
0:00:07.8]} 73. h5 {[%clk 0:00:03.3]} 73... gxh5 {[%clk 0:00:07.4]} 74. gxh5
{[%clk 0:00:04.2]} 74... a3 {[%clk 0:00:07.9]} 75. h6 {[%clk 0:00:04.7]} 75...
Qb2+ {[%clk 0:00:07.5]} 76. Kg3 {[%clk 0:00:04.4]} 76... a2 {[%clk 0:00:08.1]}
77. h7 {[%clk 0:00:03.6]} 77... a1=Q {[%clk 0:00:08.4]} 78. Qc5 {[%clk
0:00:01.7]} 78... Qg7+ {[%clk 0:00:08.5]} 79. Kf3 {[%clk 0:00:01.6]} 79... Qac3+
{[%clk 0:00:08.4]} 80. Qxc3 {[%clk 0:00:01.6]} 80... Qxc3+ {[%clk 0:00:09.1]}
81. Ke4 {[%clk 0:00:01.5]} 81... Qg7 {[%clk 0:00:09.3]} 82. h8=Q {[%clk
0:00:01]} 82... Qxh8 {[%clk 0:00:09.6]} 0-1

[Event "Early-Titled-Tuesday-Blitz-February-06-2024"]
[Site "Chess.com"]
[Date "2024.02.06"]
[Round "11"]
[White "Salem-AR"]
[Black "baki83"]
[Result "1-0"]
[WhiteElo "2940"]
[BlackElo "2802"]
[TimeControl "180+1"]
[EndTime "10:09:15 PST"]
[Termination "Salem-AR won by checkmate"]

1. Nf3 {[%clk 0:02:55]} 1... d5 {[%clk 0:03:00.1]} 2. g3 {[%clk 0:02:55.3]} 2...
Nf6 {[%clk 0:02:59.6]} 3. Bg2 {[%clk 0:02:55.9]} 3... Bf5 {[%clk 0:02:59.4]} 4.
O-O {[%clk 0:02:56.1]} 4... e6 {[%clk 0:02:59.5]} 5. d3 {[%clk 0:02:56.6]} 5...
h6 {[%clk 0:02:59]} 6. c4 {[%clk 0:02:55.8]} 6... c6 {[%clk 0:02:59.2]} 7. Qb3
{[%clk 0:02:56.2]} 7... Qb6 {[%clk 0:02:59.5]} 8. Be3 {[%clk 0:02:56.6]} 8...
Qxb3 {[%clk 0:02:59.3]} 9. axb3 {[%clk 0:02:57.4]} 9... a6 {[%clk 0:02:58.1]}
10. Bd4 {[%clk 0:02:57.1]} 10... Nbd7 {[%clk 0:02:57.6]} 11. Bc3 {[%clk
0:02:57.2]} 11... Be7 {[%clk 0:02:45.8]} 12. Nbd2 {[%clk 0:02:57.1]} 12... O-O
{[%clk 0:02:45.3]} 13. b4 {[%clk 0:02:57.8]} 13... Rfd8 {[%clk 0:02:44.3]} 14.
Nb3 {[%clk 0:02:56.4]} 14... dxc4 {[%clk 0:02:37.2]} 15. dxc4 {[%clk 0:02:56.9]}
15... Ne4 {[%clk 0:02:37.3]} 16. Nfd4 {[%clk 0:02:52.8]} 16... Nb6 {[%clk
0:01:48.2]} 17. Nxf5 {[%clk 0:02:32.5]} 17... exf5 {[%clk 0:01:48.2]} 18. Na5
{[%clk 0:02:33.3]} 18... Nxc3 {[%clk 0:01:47.8]} 19. bxc3 {[%clk 0:02:32.3]}
19... Rab8 {[%clk 0:01:46.6]} 20. Bxc6 {[%clk 0:02:22.8]} 20... Bf6 {[%clk
0:01:29.8]} 21. c5 {[%clk 0:02:12.6]} 21... Bxc3 {[%clk 0:01:25.3]} 22. cxb6
{[%clk 0:02:11.1]} 22... Bxa1 {[%clk 0:01:22.6]} 23. Rxa1 {[%clk 0:02:09.8]}
23... Rd6 {[%clk 0:00:52.4]} 24. Bxb7 {[%clk 0:01:46.7]} 24... Rxb6 {[%clk
0:00:52.5]} 25. Bf3 {[%clk 0:01:47.5]} 25... Rxb4 {[%clk 0:00:52.7]} 26. Kg2
{[%clk 0:01:48.2]} 26... Rb1 {[%clk 0:00:48.6]} 27. Ra3 {[%clk 0:01:48.8]} 27...
g6 {[%clk 0:00:24.1]} 28. h4 {[%clk 0:01:26.4]} 28... Rc1 {[%clk 0:00:20.6]} 29.
Nc6 {[%clk 0:01:19.2]} 29... Rb6 {[%clk 0:00:20.5]} 30. Ne5 {[%clk 0:01:16.9]}
30... Kg7 {[%clk 0:00:14]} 31. Ra4 {[%clk 0:01:08.4]} 31... Rc7 {[%clk
0:00:13.4]} 32. Nd3 {[%clk 0:00:57.6]} 32... Ra7 {[%clk 0:00:10.3]} 33. Bd5
{[%clk 0:00:51.9]} 33... a5 {[%clk 0:00:10.2]} 34. f3 {[%clk 0:00:36.5]} 34...
h5 {[%clk 0:00:10.5]} 35. Kf2 {[%clk 0:00:36.2]} 35... Rd6 {[%clk 0:00:09.9]}
36. Ba2 {[%clk 0:00:34.1]} 36... Rb6 {[%clk 0:00:09.8]} 37. Ne5 {[%clk
0:00:27.4]} 37... Rb4 {[%clk 0:00:08.7]} 38. Ra3 {[%clk 0:00:28.1]} 38... Rb5
{[%clk 0:00:06.7]} 39. f4 {[%clk 0:00:20.1]} 39... Rc5 {[%clk 0:00:04.5]} 40.
Ra4 {[%clk 0:00:19.4]} 40... Rb5 {[%clk 0:00:03.6]} 41. Nd3 {[%clk 0:00:19.6]}
41... Rc7 {[%clk 0:00:02.9]} 42. Bc4 {[%clk 0:00:18.8]} 42... Rb6 {[%clk
0:00:02.7]} 43. Bd5 {[%clk 0:00:18.3]} 43... Ra7 {[%clk 0:00:03.3]} 44. Ke3
{[%clk 0:00:18]} 44... Rb5 {[%clk 0:00:03.7]} 45. Kd4 {[%clk 0:00:18.3]} 45...
Rb6 {[%clk 0:00:04]} 46. Kc5 {[%clk 0:00:18.3]} 46... Rb1 {[%clk 0:00:04.3]} 47.
Ne5 {[%clk 0:00:18.2]} 47... Rg1 {[%clk 0:00:04.2]} 48. Ra3 {[%clk 0:00:18.3]}
48... Rc1+ {[%clk 0:00:04.2]} 49. Kb6 {[%clk 0:00:16.9]} 49... Re7 {[%clk
0:00:04.2]} 50. Rxa5 {[%clk 0:00:16.4]} 50... Rc3 {[%clk 0:00:04.5]} 51. Bf3
{[%clk 0:00:16.4]} 51... f6 {[%clk 0:00:03.3]} 52. Nd3 {[%clk 0:00:15.4]} 52...
Re3 {[%clk 0:00:02.8]} 53. Rd5 {[%clk 0:00:15.3]} 53... g5 {[%clk 0:00:01.9]}
54. hxg5 {[%clk 0:00:14.6]} 54... fxg5 {[%clk 0:00:02.8]} 55. fxg5 {[%clk
0:00:15.1]} 55... Rb3+ {[%clk 0:00:03.2]} 56. Kc5 {[%clk 0:00:15]} 56... Kg6
{[%clk 0:00:03.9]} 57. Kc4 {[%clk 0:00:13.2]} 57... Ra3 {[%clk 0:00:03.8]} 58.
Kd4 {[%clk 0:00:13.1]} 58... Re8 {[%clk 0:00:03.8]} 59. Nf4+ {[%clk 0:00:07.1]}
59... Kxg5 {[%clk 0:00:04.4]} 60. Bxh5 {[%clk 0:00:06.9]} 60... Re4+ {[%clk
0:00:04]} 61. Kc5 {[%clk 0:00:06.5]} 61... Ra5+ {[%clk 0:00:04.3]} 62. Kd6
{[%clk 0:00:06.5]} 62... Ra6+ {[%clk 0:00:04.2]} 63. Kc7 {[%clk 0:00:06.3]}
63... Ra7+ {[%clk 0:00:04.6]} 64. Kb6 {[%clk 0:00:06.5]} 64... Ra3 {[%clk
0:00:04.9]} 65. Bf3 {[%clk 0:00:06.7]} 65... Ree3 {[%clk 0:00:04]} 66. Kc6
{[%clk 0:00:06.7]} 66... Rxf3 {[%clk 0:00:04.2]} 67. exf3 {[%clk 0:00:06.5]}
67... Rxf3 {[%clk 0:00:05.1]} 68. Ne2 {[%clk 0:00:04.7]} 68... Re3 {[%clk
0:00:05.6]} 69. Nd4 {[%clk 0:00:04.3]} 69... Rxg3 {[%clk 0:00:05.2]} 70. Nxf5
{[%clk 0:00:05]} 70... Rc3+ {[%clk 0:00:05.5]} 71. Kd6 {[%clk 0:00:05.5]} 71...
Rc1 {[%clk 0:00:06.1]} 72. Nd4+ {[%clk 0:00:06]} 72... Kf6 {[%clk 0:00:05.9]}
73. Rf5+ {[%clk 0:00:05.8]} 73... Kg6 {[%clk 0:00:06.5]} 74. Rf4 {[%clk
0:00:06.3]} 74... Rd1 {[%clk 0:00:06.7]} 75. Ke6 {[%clk 0:00:06.5]} 75... Re1+
{[%clk 0:00:07.1]} 76. Kd5 {[%clk 0:00:06.4]} 76... Rd1 {[%clk 0:00:07.5]} 77.
Ke5 {[%clk 0:00:06.5]} 77... Re1+ {[%clk 0:00:07.9]} 78. Kd5 {[%clk 0:00:07.2]}
78... Rd1 {[%clk 0:00:08.4]} 79. Rf3 {[%clk 0:00:07.9]} 79... Kg5 {[%clk
0:00:07.9]} 80. Rf2 {[%clk 0:00:08.2]} 80... Kg6 {[%clk 0:00:07.8]} 81. Ke5
{[%clk 0:00:08.6]} 81... Re1+ {[%clk 0:00:07.9]} 82. Ne2 {[%clk 0:00:09.4]}
82... Kg7 {[%clk 0:00:07.4]} 83. Ke6 {[%clk 0:00:10]} 83... Ra1 {[%clk
0:00:05.7]} 84. Rg2+ {[%clk 0:00:10.2]} 84... Kh6 {[%clk 0:00:05.7]} 85. Nf4
{[%clk 0:00:10.4]} 85... Ra6+ {[%clk 0:00:05.5]} 86. Kf5 {[%clk 0:00:10.7]}
86... Ra5+ {[%clk 0:00:06.2]} 87. Kf6 {[%clk 0:00:11.2]} 87... Ra6+ {[%clk
0:00:06.8]} 88. Ke5 {[%clk 0:00:11.9]} 88... Ra5+ {[%clk 0:00:07.2]} 89. Nd5
{[%clk 0:00:12.4]} 89... Kh5 {[%clk 0:00:07.4]} 90. Rg8 {[%clk 0:00:12.6]} 90...
Kh6 {[%clk 0:00:07.8]} 91. Rg4 {[%clk 0:00:11.6]} 91... Kh5 {[%clk 0:00:07.9]}
92. Rg3 {[%clk 0:00:11.4]} 92... Kh4 {[%clk 0:00:08.5]} 93. Rd3 {[%clk
0:00:11.2]} 93... Kg4 {[%clk 0:00:08.1]} 94. Rc3 {[%clk 0:00:09.3]} 94... Rb5
{[%clk 0:00:06.7]} 95. Ra3 {[%clk 0:00:09.1]} 95... Rb1 {[%clk 0:00:05.1]} 96.
Nf6+ {[%clk 0:00:08.7]} 96... Kh4 {[%clk 0:00:04.4]} 97. Ne4 {[%clk 0:00:08.7]}
97... Rb5+ {[%clk 0:00:02.6]} 98. Kf4 {[%clk 0:00:08.6]} 98... Kh5 {[%clk
0:00:03.1]} 99. Ra6 {[%clk 0:00:08.6]} 99... Rb1 {[%clk 0:00:02.1]} 100. Ng3+
{[%clk 0:00:08.7]} 100... Kh4 {[%clk 0:00:02.7]} 101. Rh6# {[%clk 0:00:09.5]}
1-0